fUSD/lending_fUSD_20240424
["ID","MTS","AMOUNT","RATE_DAILY","PERIOD"]
[323414470,1713973853008,-1095.8,0.00011506,2]
[323414472,1713973853017,-527.3,0.00011506,2]
[323414474,1713973853027,-5837.67,0.00011506,2]
[323414476,1713973853036,-500.0,0.00011506,2]
[323414477,1713973853046,-878.78,0.00011506,2]
[323414479,1713973853055,-4350.58,0.00011506,2]
[323414481,1713973853065,-2413.37,0.00011506,2]
[323414483,1713973853074,-10692.15,0.00011506,2]
[323414484,1713973853086,-500.0,0.00011506,2]
[323414486,1713973853096,-500.0,0.00011506,2]
[323414488,1713973853105,-500.0,0.00011506,2]
[323414490,1713973853115,-2457.4,0.00011506,2]
[323414491,1713973853125,-5368.24,0.00011506,2]
[323414493,1713973853137,-1695.31,0.00011506,2]
[323414495,1713973853147,-11377.06,0.00011506,2]
[323414497,1713973853157,-809.12,0.00011506,2]
[323414499,1713973853166,-2886.54,0.00011506,2]
[323414500,1713973853176,-1930.29,0.00011506,2]
[323414502,1713973853185,-4022.2,0.00011506,2]
[323414504,1713973853195,-500.0,0.00011506,2]
[323414506,1713973853204,-4740.44,0.00011506,2]
[323414508,1713973853214,-1781.75,0.00011506,2]
[323414509,1713973853223,-1741.92,0.00011506,2]
[323414511,1713973853232,-7921.2,0.00011506,2]
[323414513,1713973853242,-5590.58,0.00011506,2]
[323414515,1713973853252,-1092.68,0.00011506,2]
[323414516,1713973853262,-2482.67,0.00011506,2]
[323414518,1713973853271,-707.08,0.00011506,2]
[323414520,1713973853281,-731.57,0.00011506,2]
[323414522,1713973853290,-500.0,0.00011506,2]
[323414524,1713973853300,-601.86,0.00011506,2]
[323414525,1713973853310,-706.86,0.00011506,2]
[323414527,1713973853319,-500.0,0.00011506,2]
[323414529,1713973853328,-521.04,0.00011506,2]
[323414531,1713973853338,-1326.14,0.00011506,2]
[323414532,1713973853347,-500.0,0.00011506,2]
[323414534,1713973853357,-905.06,0.00011506,2]
[323414536,1713973853367,-2148.12,0.00011506,2]
[323414538,1713973853376,-500.0,0.00011506,2]
[323414540,1713973853390,-500.0,0.00011506,2]
[323414541,1713973853399,-5074.84,0.00011506,2]
[323414543,1713973853409,-8100.5,0.00011506,2]
[323414545,1713973853419,-500.0,0.00011506,2]
[323414546,1713973853427,-3326.55,0.00011506,2]
[323414548,1713973853437,-1602.14,0.00011506,2]
[323414550,1713973853446,-500.0,0.00011506,2]
[323414552,1713973853455,-4497.56,0.00011506,2]
[323414553,1713973853464,-3026.64,0.00011506,2]
[323414555,1713973853476,-2052.23,0.00011506,2]
[323414557,1713973853486,-9822.69,0.00011506,2]
[323414559,1713973853495,-4405.07,0.00011506,2]
[323414561,1713973853505,-500.0,0.00011506,2]
[323414562,1713973853514,-717.53,0.00011506,2]
[323414564,1713973853523,-2098.14,0.00011506,2]
[323414566,1713973853533,-2191.42,0.00011506,2]
[323414568,1713973853542,-500.0,0.00011506,2]
[323414569,1713973853551,-5797.1,0.00011506,2]
[323414571,1713973853560,-2435.72,0.00011506,2]
[323414573,1713973853569,-1057.35,0.00011506,2]
[323414575,1713973853578,-527.14,0.00011506,2]
[323414577,1713973853588,-2137.67,0.00011506,2]
[323414578,1713973853597,-1518.64,0.00011506,2]
[323414580,1713973853606,-1185.13,0.00011506,2]
[323414582,1713973853617,-1109.54,0.00011506,2]
[323414584,1713973853626,-238.82,0.00011506,2]
[323414586,1713973853641,-621.43,0.00011506,2]
[323414587,1713973853651,-3781.82,0.00011506,2]
[323414588,1713973853660,-500.0,0.00011506,2]
[323414589,1713973853670,-2275.33,0.00011506,2]
[323414590,1713973853679,-527.32,0.00011506,2]
[323414591,1713973853689,-500.0,0.00011506,2]
[323414592,1713973853698,-1281.6,0.00011506,2]
[323414593,1713973853708,-555.23,0.00011506,2]
[323414594,1713973853718,-1388.93,0.00011506,2]
[323414595,1713973853729,-2236.66,0.00011506,2]
[323414596,1713973853738,-6060.52,0.00011506,2]
[323414597,1713973853748,-2081.12,0.00011506,2]
[323414598,1713973853757,-2902.5,0.00011506,2]
[323414599,1713973853767,-500.0,0.00011506,2]
[323414600,1713973853776,-500.0,0.00011506,2]
[323414601,1713973853785,-500.0,0.00011506,2]
[323414602,1713973853795,-500.0,0.00011506,2]
[323414603,1713973853804,-500.0,0.00011506,2]
[323414604,1713973853813,-4287.31,0.00011506,2]
[323414606,1713973853822,-1058.46,0.00011506,2]
[323414607,1713973853832,-500.0,0.00011506,2]
[323414609,1713973853841,-1732.94,0.00011506,2]
[323414611,1713973853851,-8648.42,0.00011506,2]
[323414613,1713973853860,-2875.89,0.00011506,2]
[323414616,1713973853869,-500.0,0.00011506,2]
[323414618,1713973853883,-3362.06,0.00011506,2]
[323414619,1713973853895,-1128.64,0.00011506,2]
[323414621,1713973853904,-500.0,0.00011506,2]
[323414623,1713973853914,-500.0,0.00011506,2]
[323414625,1713973853924,-1102.28,0.00011506,2]
[323414628,1713973853934,-3321.44,0.00011506,2]
[323414630,1713973853943,-1467.03,0.00011506,2]
[323414632,1713973853953,-7496.52,0.00011506,2]
[323414633,1713973853962,-500.0,0.00011506,2]
[323414635,1713973853972,-569.8,0.00011506,2]
[323414638,1713973853981,-500.0,0.00011506,2]
[323414640,1713973853990,-758.94,0.00011506,2]
[323414642,1713973854000,-17150.15,0.00011506,2]
[323414644,1713973854010,-912.96,0.00011506,2]
[323414645,1713973854019,-500.0,0.00011506,2]
[323414648,1713973854028,-254.58420844,0.00011506,2]
[323414650,1713973854038,-500.0,0.00011506,2]
[323414651,1713973854047,-1328.77,0.00011506,2]
[323414653,1713973854056,-5671.3,0.00011506,2]
[323414656,1713973854066,-1124.32,0.00011506,2]
[323414657,1713973854076,-2912.7,0.00011506,2]
[323414660,1713973854086,-558.12,0.00011506,2]
[323414662,1713973854097,-1520.14,0.00011506,2]
[323414664,1713973854107,-500.0,0.00011506,2]
[323414666,1713973854116,-500.0,0.00011506,2]
[323414668,1713973854127,-500.0,0.00011506,2]
[323414699,1713973854419,-500.0,0.00011506,2]
[323414701,1713973854430,-500.0,0.00011506,2]
[323414703,1713973854439,-500.0,0.00011506,2]
[323414705,1713973854448,-1553.07,0.00011506,2]
[323414707,1713973854458,-7940.4,0.00011506,2]
[323414709,1713973854467,-504.14,0.00011506,2]
[323414711,1713973854476,-3869.35,0.00011506,2]
[323414713,1713973854485,-500.0,0.00011506,2]
[323414715,1713973854494,-2581.86,0.00011506,2]
[323414717,1713973854504,-532.51,0.00011506,2]
[323414719,1713973854513,-3595.17,0.00011506,2]
[323414721,1713973854522,-620.93,0.00011506,2]
[323414723,1713973854532,-500.0,0.00011506,2]
[323414725,1713973854542,-2106.5,0.00011506,2]
[323414727,1713973854551,-500.0,0.00011506,2]
[323414729,1713973854560,-797.86741522,0.00011587,2]
[323414731,1713973854570,-157.33184734,0.00011593,2]
[323414733,1713973854580,-170.55,0.00011761,2]
[323414735,1713973854589,-3836.50998699,0.00011779,2]
[323414737,1713973854598,-6723.53833575,0.00011779,2]
[323414739,1713973854607,-2397.18,0.00011779,2]
[323414741,1713973854616,-4434.22,0.00011779,2]
[323414743,1713973854625,-3007.56,0.00011779,2]
[323414745,1713973854637,-3007.56,0.00011779,2]
[323414747,1713973854646,-5347.4,0.00011779,2]
[323414749,1713973854655,-2557.14,0.00011779,2]
[323414752,1713973854664,-908.08,0.00011779,2]
[323414754,1713973854673,-2154.97,0.00011779,2]
[323414756,1713973854683,-2682.86,0.00011779,2]
[323414758,1713973854693,-3494.09,0.00011779,2]
[323414759,1713973854702,-2100.4,0.00011779,2]
[323414761,1713973854711,-1049.7,0.00011779,2]
[323414764,1713973854721,-8393.88,0.00011779,2]
[323414766,1713973854730,-12588.02,0.00011779,2]
[323414768,1713973854743,-2129.88,0.00011779,2]
[323414770,1713973854752,-667.29,0.0001178,2]
[323414772,1713973854762,-500.0,0.0001178,2]
[323414774,1713973854772,-500.0,0.0001178,2]
[323414776,1713973854782,-500.0,0.0001178,2]
[323414779,1713973854792,-400.84,0.0001178,2]
[323414781,1713973854802,-473.04,0.0001178,2]
[323414783,1713973854811,-949.51,0.0001178,2]
[323414785,1713973854821,-500.0,0.0001178,2]
[323414787,1713973854830,-500.0,0.0001178,2]
[323414789,1713973854839,-563.58,0.0001178,2]
[323414791,1713973854848,-500.0,0.0001178,2]
[323414793,1713973854858,-500.0,0.0001178,2]
[323414795,1713973854867,-500.0,0.0001178,2]
[323414797,1713973854877,-500.0,0.0001178,2]
[323414799,1713973854890,-500.0,0.0001178,2]
[323414801,1713973854899,-500.0,0.0001178,2]
[323414803,1713973854909,-500.0,0.0001178,2]
[323414805,1713973854919,-500.0,0.0001178,2]
[323414807,1713973854928,-500.0,0.0001178,2]
[323414809,1713973854938,-500.0,0.0001178,2]
[323414811,1713973854947,-820.37,0.0001178,2]
[323414813,1713973854957,-500.0,0.0001178,2]
[323414815,1713973854967,-500.0,0.0001178,2]
[323414817,1713973854977,-500.0,0.0001178,2]
[323414819,1713973854986,-500.0,0.0001178,2]
[323414821,1713973854996,-500.0,0.0001178,2]
[323414824,1713973855007,-500.0,0.0001178,2]
[323414826,1713973855016,-500.0,0.0001178,2]
[323414828,1713973855026,-500.0,0.0001178,2]
[323414830,1713973855035,-500.0,0.0001178,2]
[323414832,1713973855045,-500.0,0.0001178,2]
[323414834,1713973855055,-500.0,0.0001178,2]
[323414836,1713973855065,-500.0,0.0001178,2]
[323414838,1713973855075,-790.5,0.0001178,2]
[323414840,1713973855088,-500.0,0.0001178,2]
[323414842,1713973855098,-948.45,0.0001178,2]
[323414844,1713973855108,-500.0,0.0001178,2]
[323414846,1713973855117,-500.0,0.0001178,2]
[323414848,1713973855127,-500.0,0.0001178,2]
[323414851,1713973855141,-500.0,0.0001178,2]
[323414853,1713973855151,-500.0,0.0001178,2]
[323414855,1713973855160,-500.0,0.0001178,2]
[323414857,1713973855171,-1612.81,0.0001178,2]
[323414859,1713973855181,-540.2,0.0001178,2]
[323414861,1713973855191,-500.0,0.0001178,2]
[323414863,1713973855200,-500.0,0.0001178,2]
[323414865,1713973855210,-500.0,0.0001178,2]
[323414867,1713973855220,-711.69,0.0001178,2]
[323414869,1713973855230,-568.11,0.0001178,2]
[323414871,1713973855239,-1601.08,0.0001178,2]
[323414873,1713973855248,-568.3,0.0001178,2]
[323414875,1713973855258,-500.0,0.0001178,2]
[323414878,1713973855271,-500.0,0.0001178,2]
[323414880,1713973855281,-500.0,0.0001178,2]
[323414882,1713973855291,-500.0,0.0001178,2]
[323414884,1713973855301,-500.0,0.0001178,2]
[323414886,1713973855310,-523.14,0.0001178,2]
[323414888,1713973855321,-3252.85,0.0001178,2]
[323414890,1713973855331,-992.38,0.0001178,2]
[323414892,1713973855341,-500.0,0.0001178,2]
[323414894,1713973855351,-842.16,0.0001178,2]
[323414897,1713973855361,-638.7,0.0001178,2]
[323414899,1713973855371,-500.0,0.0001178,2]
[323414901,1713973855383,-500.0,0.0001178,2]
[323414903,1713973855393,-606.36,0.0001178,2]
[323414905,1713973855405,-1485.06,0.0001178,2]
[323414907,1713973855415,-500.0,0.0001178,2]
[323414909,1713973855425,-500.0,0.0001178,2]
[323414911,1713973855436,-717.81,0.0001178,2]
[323414913,1713973855447,-1478.51,0.0001178,2]
[323414915,1713973855456,-500.0,0.0001178,2]
[323414917,1713973855466,-500.0,0.0001178,2]
[323414919,1713973855476,-500.0,0.0001178,2]
[323414921,1713973855485,-500.0,0.0001178,2]
[323414924,1713973855495,-548.59,0.0001178,2]
[323414926,1713973855506,-500.0,0.0001178,2]
[323414928,1713973855516,-1265.7,0.0001178,2]
[323414930,1713973855526,-500.0,0.0001178,2]
[323414932,1713973855536,-500.0,0.0001178,2]
[323414934,1713973855546,-567.3,0.0001178,2]
[323414936,1713973855556,-915.02,0.0001178,2]
[323414938,1713973855566,-929.5,0.0001178,2]
[323414940,1713973855575,-820.02,0.0001178,2]
[323414942,1713973855586,-500.0,0.0001178,2]
[323414944,1713973855595,-500.0,0.0001178,2]
[323414946,1713973855605,-500.0,0.0001178,2]
[323414948,1713973855615,-2057.46,0.0001178,2]
[323414950,1713973855625,-500.0,0.0001178,2]
[323414952,1713973855637,-500.0,0.0001178,2]
[323414954,1713973855647,-500.0,0.0001178,2]
[323414956,1713973855657,-731.11,0.0001178,2]
[323414958,1713973855666,-500.0,0.0001178,2]
[323414960,1713973855676,-1747.26,0.0001178,2]
[323414962,1713973855686,-527.58,0.0001178,2]
[323414965,1713973855696,-750.07,0.0001178,2]
[323414967,1713973855706,-1164.73,0.0001178,2]
[323414969,1713973855716,-500.0,0.0001178,2]
[323414970,1713973855725,-500.0,0.0001178,2]
[323414973,1713973855735,-2166.34,0.0001178,2]
[323414975,1713973855745,-845.41,0.0001178,2]
[323414977,1713973855755,-500.0,0.0001178,2]
[323414979,1713973855764,-500.0,0.0001178,2]
[323414981,1713973855774,-500.0,0.0001178,2]
[323414983,1713973855784,-500.0,0.0001178,2]
[323414985,1713973855796,-500.0,0.0001178,2]
[323414987,1713973855806,-818.75,0.0001178,2]
[323414989,1713973855816,-652.43,0.0001178,2]
[323414992,1713973855826,-503.4,0.0001178,2]
[323414994,1713973855836,-871.72,0.0001178,2]
[323414996,1713973855846,-500.0,0.0001178,2]
[323414998,1713973855855,-500.0,0.0001178,2]
[323415000,1713973855866,-313.15,0.0001178,2]
[323415002,1713973855875,-500.0,0.0001178,2]
[323415004,1713973855887,-2572.82,0.0001178,2]
[323415006,1713973855896,-500.0,0.0001178,2]
[323415008,1713973855906,-1436.45,0.0001178,2]
[323415010,1713973855915,-2295.35,0.0001178,2]
[323415012,1713973855924,-500.0,0.0001178,2]
[323415014,1713973855934,-500.0,0.0001178,2]
[323415016,1713973855946,-2029.6,0.0001178,2]
[323415018,1713973855955,-500.0,0.0001178,2]
[323415020,1713973855966,-500.0,0.0001178,2]
[323415023,1713973855976,-8677.54,0.0001178,2]
[323415025,1713973855986,-905.45,0.0001178,2]
[323415027,1713973855995,-500.0,0.0001178,2]
[323415029,1713973856005,-500.0,0.0001178,2]
[323415031,1713973856015,-558.24,0.0001178,2]
[323415033,1713973856025,-500.0,0.0001178,2]
[323415035,1713973856035,-500.0,0.0001178,2]
[323415037,1713973856045,-1504.58,0.0001178,2]
[323415039,1713973856054,-500.0,0.0001178,2]
[323415041,1713973856064,-514.67,0.0001178,2]
[323415043,1713973856074,-500.0,0.0001178,2]
[323415045,1713973856087,-322.39,0.0001178,2]
[323415047,1713973856097,-2367.93,0.0001178,2]
[323415049,1713973856106,-500.0,0.0001178,2]
[323415051,1713973856116,-2049.01,0.0001178,2]
[323415053,1713973856128,-563.66,0.0001178,2]
[323415056,1713973856140,-500.0,0.0001178,2]
[323415058,1713973856149,-831.05,0.0001178,2]
[323415060,1713973856159,-832.5,0.0001178,2]
[323415062,1713973856169,-773.07,0.0001178,2]
[323415064,1713973856179,-1885.66,0.0001178,2]
[323415066,1713973856188,-500.0,0.0001178,2]
[323415068,1713973856197,-500.0,0.0001178,2]
[323415070,1713973856207,-1067.22,0.0001178,2]
[323415072,1713973856216,-500.0,0.0001178,2]
[323415074,1713973856227,-381.83518279,0.0001178,2]
[323415076,1713973856236,-1225.98,0.0001178,2]
[323415078,1713973856245,-4156.64,0.0001178,2]
[323415080,1713973856255,-1912.6,0.0001178,2]
[323415082,1713973856264,-2203.2,0.0001178,2]
[323415084,1713973856275,-880.27,0.0001178,2]
[323415086,1713973856284,-3146.1,0.0001178,2]
[323415088,1713973856294,-1078.5,0.0001178,2]
[323415090,1713973856304,-705.82,0.0001178,2]
[323415092,1713973856313,-500.0,0.0001178,2]
[323415094,1713973856323,-500.0,0.0001178,2]
[323415096,1713973856333,-3820.63,0.0001178,2]
[323415098,1713973856343,-500.0,0.0001178,2]
[323415100,1713973856352,-2113.48,0.0001178,2]
[323415102,1713973856362,-838.0,0.0001178,2]
[323415104,1713973856371,-1931.43,0.0001178,2]
[323415106,1713973856381,-2703.75,0.0001178,2]
[323415108,1713973856390,-2822.26,0.0001178,2]
[323415110,1713973856400,-2276.67,0.0001178,2]
[323415112,1713973856413,-500.0,0.0001178,2]
[323415114,1713973856422,-500.0,0.0001178,2]
[323415116,1713973856432,-500.0,0.0001178,2]
[323415117,1713973856441,-313.43,0.0001178,2]
[323415118,1713973856450,-570.66,0.0001178,2]
[323415119,1713973856460,-500.0,0.0001178,2]
[323415120,1713973856469,-1592.29,0.0001178,2]
[323415121,1713973856478,-3059.74,0.0001178,2]
[323415122,1713973856488,-500.0,0.0001178,2]
[323415123,1713973856497,-548.12,0.0001178,2]
[323415124,1713973856506,-509.35859235,0.0001178,2]
[323415125,1713973856515,-2461.5,0.0001178,2]
[323415126,1713973856524,-615.38,0.0001178,2]
[323415127,1713973856533,-1324.12,0.0001178,2]
[323415128,1713973856543,-3971.12,0.0001178,2]
[323415130,1713973856552,-500.0,0.0001178,2]
[323415132,1713973856562,-2626.7,0.0001178,2]
[323415134,1713973856571,-723.69,0.0001178,2]
[323415136,1713973856581,-500.0,0.0001178,2]
[323415138,1713973856591,-13126.48,0.0001178,2]
[323415140,1713973856600,-614.22,0.0001178,2]
[323415142,1713973856609,-4645.68,0.0001178,2]
[323415144,1713973856619,-11122.29,0.0001178,2]
[323415146,1713973856629,-500.0,0.0001178,2]
[323415148,1713973856639,-506.68,0.0001178,2]
[323415150,1713973856649,-562.53,0.0001178,2]
[323415152,1713973856659,-2271.05,0.0001178,2]
[323415154,1713973856668,-1405.08,0.0001178,2]
[323415156,1713973856679,-867.56,0.0001178,2]
[323415158,1713973856688,-500.0,0.0001178,2]
[323415160,1713973856697,-1234.4,0.0001178,2]
[323415162,1713973856707,-743.5,0.0001178,2]
[323415164,1713973856717,-8796.92,0.0001178,2]
[323415166,1713973856726,-500.0,0.0001178,2]
[323415168,1713973856736,-1738.01,0.0001178,2]
[323415170,1713973856745,-1578.64,0.0001178,2]
[323415172,1713973856755,-1828.37,0.0001178,2]
[323415174,1713973856765,-500.0,0.0001178,2]
[323415176,1713973856774,-500.0,0.0001178,2]
[323415188,1713973856872,-9330.53,0.0001178,2]
[323415190,1713973856883,-795.52,0.0001178,2]
[323415192,1713973856892,-3280.03,0.0001178,2]
[323415194,1713973856901,-1090.54,0.0001178,2]
[323415196,1713973856909,-1095.8,0.0001178,2]
[323415198,1713973856919,-527.3,0.0001178,2]
[323415200,1713973856928,-5837.67,0.0001178,2]
[323415202,1713973856937,-500.0,0.0001178,2]
[323415204,1713973856947,-878.78,0.0001178,2]
[323415206,1713973856956,-2413.37,0.0001178,2]
[323415208,1713973856966,-4350.58,0.0001178,2]
[323415210,1713973856975,-10692.15,0.0001178,2]
[323415212,1713973856984,-500.0,0.0001178,2]
[323415214,1713973856994,-500.0,0.0001178,2]
[323415216,1713973857003,-500.0,0.0001178,2]
[323415218,1713973857013,-2457.4,0.0001178,2]
[323415220,1713973857022,-5368.24,0.0001178,2]
[323415222,1713973857031,-11377.06,0.0001178,2]
[323415224,1713973857041,-1695.31,0.0001178,2]
[323415226,1713973857050,-809.12,0.0001178,2]
[323415228,1713973857059,-2886.54,0.0001178,2]
[323415230,1713973857069,-1930.29,0.0001178,2]
[323415232,1713973857078,-4022.2,0.0001178,2]
[323415234,1713973857090,-308.22,0.0001178,2]
[323415236,1713973857098,-4740.44,0.0001178,2]
[323415238,1713973857107,-1781.75,0.0001178,2]
[323415240,1713973857117,-1741.92,0.0001178,2]
[323415242,1713973857126,-7921.2,0.0001178,2]
[323415244,1713973857138,-5590.58,0.0001178,2]
[323415246,1713973857148,-1092.68,0.0001178,2]
[323415248,1713973857157,-2482.67,0.0001178,2]
[323415250,1713973857168,-707.08,0.0001178,2]
[323415252,1713973857177,-731.57,0.0001178,2]
[323415254,1713973857185,-500.0,0.0001178,2]
[323415256,1713973857194,-601.86,0.0001178,2]
[323415258,1713973857204,-706.86,0.0001178,2]
[323415260,1713973857213,-500.0,0.0001178,2]
[323415262,1713973857222,-521.04,0.0001178,2]
[323415264,1713973857231,-1326.14,0.0001178,2]
[323415266,1713973857240,-500.0,0.0001178,2]
[323415268,1713973857249,-905.06,0.0001178,2]
[323415270,1713973857258,-2148.12,0.0001178,2]
[323415272,1713973857267,-500.0,0.0001178,2]
[323415274,1713973857276,-500.0,0.0001178,2]
[323415276,1713973857285,-5074.84,0.0001178,2]
[323415278,1713973857294,-8100.5,0.0001178,2]
[323415280,1713973857303,-500.0,0.0001178,2]
[323415282,1713973857311,-3326.55,0.0001178,2]
[323415284,1713973857320,-1602.14,0.0001178,2]
[323415286,1713973857330,-500.0,0.0001178,2]
[323415288,1713973857339,-4497.56,0.0001178,2]
[323415290,1713973857348,-3026.64,0.0001178,2]
[323415292,1713973857357,-2052.23,0.0001178,2]
[323415294,1713973857366,-9822.69,0.0001178,2]
[323415296,1713973857384,-4405.07,0.0001178,2]
[323415299,1713973857396,-500.0,0.0001178,2]
[323415301,1713973857405,-717.53,0.0001178,2]
[323415303,1713973857414,-2098.14,0.0001178,2]
[323415305,1713973857423,-2191.42,0.0001178,2]
[323415307,1713973857435,-500.0,0.0001178,2]
[323415309,1713973857445,-5797.1,0.0001178,2]
[323415311,1713973857455,-2435.72,0.0001178,2]
[323415313,1713973857464,-1057.35,0.0001178,2]
[323415315,1713973857475,-527.14,0.0001178,2]
[323415318,1713973857486,-2137.67,0.0001178,2]
[323415320,1713973857495,-1518.64,0.0001178,2]
[323415322,1713973857504,-1185.13,0.0001178,2]
[323415324,1713973857513,-1109.54,0.0001178,2]
[323415326,1713973857522,-621.43,0.0001178,2]
[323415327,1713973857531,-3781.82,0.0001178,2]
[323415329,1713973857542,-500.0,0.0001178,2]
[323415331,1713973857551,-2275.33,0.0001178,2]
[323415333,1713973857560,-527.32,0.0001178,2]
[323415335,1713973857570,-500.0,0.0001178,2]
[323415337,1713973857579,-1281.6,0.0001178,2]
[323415339,1713973857588,-555.23,0.0001178,2]
[323415341,1713973857597,-1388.93,0.0001178,2]
[323415343,1713973857607,-2236.66,0.0001178,2]
[323415345,1713973857617,-6060.52,0.0001178,2]
[323415347,1713973857627,-2081.12,0.0001178,2]
[323415349,1713973857638,-2902.5,0.0001178,2]
[323415351,1713973857647,-293.11,0.0001178,2]
[323415353,1713973857656,-500.0,0.0001178,2]
[323415355,1713973857666,-500.0,0.0001178,2]
[323415357,1713973857675,-500.0,0.0001178,2]
[323415359,1713973857685,-500.0,0.0001178,2]
[323415361,1713973857695,-500.0,0.0001178,2]
[323415363,1713973857705,-4287.31,0.0001178,2]
[323415365,1713973857715,-1732.94,0.0001178,2]
[323415367,1713973857724,-8648.42,0.0001178,2]
[323415370,1713973857734,-2875.89,0.0001178,2]
[323415372,1713973857745,-500.0,0.0001178,2]
[323415374,1713973857754,-3362.06,0.0001178,2]
[323415376,1713973857763,-1128.64,0.0001178,2]
[323415378,1713973857772,-500.0,0.0001178,2]
[323415380,1713973857782,-382.93228978,0.0001178,2]
[323415382,1713973857791,-1102.28,0.0001178,2]
[323415384,1713973857800,-3321.44,0.0001178,2]
[323415386,1713973857809,-1467.03,0.0001178,2]
[323415388,1713973857818,-7496.52,0.0001178,2]
[323415390,1713973857828,-500.0,0.0001178,2]
[323415392,1713973857837,-569.8,0.0001178,2]
[323415394,1713973857847,-758.94,0.0001178,2]
[323415396,1713973857856,-17150.15,0.0001178,2]
[323415398,1713973857865,-500.0,0.0001178,2]
[323415400,1713973857874,-912.96,0.0001178,2]
[323415402,1713973857885,-500.0,0.0001178,2]
[323415403,1713973857897,-500.0,0.0001178,2]
[323415405,1713973857907,-1328.77,0.0001178,2]
[323415408,1713973857917,-5671.3,0.0001178,2]
[323415410,1713973857928,-1124.32,0.0001178,2]
[323415412,1713973857938,-2912.7,0.0001178,2]
[323415414,1713973857947,-558.12,0.0001178,2]
[323415416,1713973857958,-1520.14,0.0001178,2]
[323415418,1713973857967,-500.0,0.0001178,2]
[323415420,1713973857976,-575.19977548,0.0001178,2]
[323415422,1713973857986,-500.0,0.0001178,2]
[323415424,1713973857995,-500.0,0.0001178,2]
[323415426,1713973858004,-500.0,0.0001178,2]
[323415428,1713973858014,-500.0,0.0001178,2]
[323415430,1713973858023,-1553.07,0.0001178,2]
[323415432,1713973858032,-7940.4,0.0001178,2]
[323415434,1713973858042,-504.14,0.0001178,2]
[323415436,1713973858050,-3869.35,0.0001178,2]
[323415438,1713973858059,-500.0,0.0001178,2]
[323415440,1713973858069,-2581.86,0.0001178,2]
[323415442,1713973858078,-532.51,0.0001178,2]
[323415444,1713973858090,-3595.17,0.0001178,2]
[323415446,1713973858100,-620.93,0.0001178,2]
[323415448,1713973858109,-500.0,0.0001178,2]
[323415450,1713973858118,-2106.5,0.0001178,2]
[323415452,1713973858128,-500.0,0.0001178,2]
[323415454,1713973858139,-252.72825548,0.00011954,2]
[323415456,1713973858148,-200.88129127,0.00011954,2]
[323415457,1713973858158,-2287.0,0.00012051,2]
[323415460,1713973858169,-389.173,0.00012051,2]
[323415462,1713973858178,-5183.52,0.00012051,2]
[323415464,1713973858187,-2706.0,0.00012051,2]
[323415465,1713973858197,-5894.0,0.00012051,2]
[323415467,1713973858206,-234.243,0.00012051,2]
[323415469,1713973858215,-2397.18,0.00012053,2]
[323415472,1713973858225,-4434.22,0.00012053,2]
[323415474,1713973858234,-3007.56,0.00012053,2]
[323415475,1713973858244,-3007.56,0.00012053,2]